bitfinex/quotes_BTCUSD_20251124
["timestamp","ask_amount","ask_price","bid_price","bid_amount"]
[1763957416176,0.86013119,87720.0,87710.0,0.01349]
[1763957418636,0.86013119,87720.0,87711.0,0.02858]
[1763957418842,0.86013119,87720.0,87719.0,0.01321]
[1763957419049,0.86013119,87729.0,87719.0,0.01321]
[1763957419269,2.0,87734.0,87728.0,0.01811]
[1763957419479,0.08349659,87746.0,87733.0,0.01811]
[1763957419753,0.0004,87750.0,87739.0,0.03132]
[1763957419915,0.0004,87750.0,87739.0,0.04414828]
[1763957420116,0.0004,87750.0,87739.0,0.07272828]
[1763957420340,0.0004,87750.0,87728.0,0.01321]
[1763957420341,0.01139653,87746.0,87728.0,0.01321]
[1763957420630,0.87942229,87740.0,87729.0,0.02858]
[1763957420791,0.0192911,87740.0,87729.0,0.02858]
[1763957421519,0.0192911,87740.0,87739.0,0.03132]
[1763957421957,0.0192911,87740.0,87739.0,0.0599]
[1763957422333,0.0192911,87740.0,87739.0,0.06589]
[1763957423841,0.0192911,87740.0,87739.0,0.06689]
[1763957424211,0.00189868,87740.0,87739.0,0.06689]
[1763957425450,0.00189868,87740.0,87739.0,0.03232]
[1763957425651,0.00189868,87740.0,87739.0,0.001]
[1763957426251,0.00189868,87740.0,87739.0,0.04769]
[1763957426423,0.00189868,87740.0,87739.0,0.04669]
[1763957426621,0.01752988,87741.0,87739.0,0.04669]
[1763957426884,0.0001118,87741.0,87740.0,0.14365278]
[1763957427098,0.0001118,87741.0,87740.0,0.15801806]
[1763957427320,0.0001118,87741.0,87740.0,0.06105528]
[1763957427476,0.0001118,87741.0,87740.0,0.04669]
[1763957428657,0.0001118,87741.0,87728.0,0.01321]
[1763957428858,0.86013119,87740.0,87728.0,0.01321]
[1763957429308,0.0001118,87741.0,87729.0,0.02279747]
[1763957429528,0.0001118,87741.0,87728.0,0.04179]
[1763957429724,0.0001118,87741.0,87740.0,0.001]
[1763957429959,0.0001118,87741.0,87740.0,0.01811]
[1763957430132,0.0001118,87741.0,87740.0,0.04669]
[1763957430336,1.8e-06,87741.0,87740.0,0.04669]
[1763957430494,0.01761453,87750.0,87742.0,0.01811]
[1763957430692,0.0004,87750.0,87749.0,0.03132]
[1763957430897,0.0004,87750.0,87749.0,0.04454071]
[1763957431087,0.0004,87750.0,87749.0,0.07312071]
[1763957432218,0.0004,87750.0,87749.0,0.07412071]
[1763957434207,0.0004,87750.0,87749.0,0.07512071]
[1763957434621,0.00071103,87750.0,87749.0,0.07512071]
[1763957436109,0.00071103,87750.0,87749.0,0.09791299]
[1763957436722,0.00071103,87750.0,87749.0,0.07512071]
[1763957436962,0.00071103,87750.0,87749.0,0.06229243]
[1763957437622,0.00071103,87750.0,87749.0,0.03371243]
[1763957437828,0.00071103,87750.0,87749.0,0.06030243]
[1763957438123,0.00071103,87750.0,87749.0,0.03371243]
[1763957438323,0.01825103,87750.0,87749.0,0.00239243]
[1763957438565,0.03817103,87750.0,87749.0,0.00239243]
[1763957439959,0.0594629,87750.0,87749.0,0.00239243]
[1763957440183,2.0594629,87750.0,87749.0,0.00139243]
[1763957440499,2.0594629,87750.0,87749.0,0.00039243]
[1763957441699,2.0604629,87750.0,87749.0,0.00039243]
[1763957447770,2.28838312,87750.0,87749.0,0.00039243]
[1763957450414,2.2882311,87750.0,87749.0,0.00039243]
[1763957450806,2.2882311,87750.0,87749.0,0.00069843]
[1763957451445,2.2882311,87750.0,87708.0,0.02779]
[1763957451702,2.2882311,87750.0,87681.0,0.01401]
[1763957451703,0.02687,87711.0,87697.0,0.02779]
[1763957452028,0.02687,87711.0,87692.0,0.0418]
[1763957452430,0.00937,87711.0,87699.0,0.02779]
[1763957452605,0.0175,87708.0,87692.0,0.01401]
[1763957452745,0.0175,87708.0,87707.0,0.00161834]
[1763957453597,0.00937,87711.0,87707.0,0.00161834]
[1763957455571,0.0175,87708.0,87707.0,0.00161834]
[1763957455957,0.03624,87708.0,87707.0,0.00161834]
[1763957456288,0.00937,87711.0,87707.0,0.00161834]
[1763957458186,0.00937,87716.0,87710.0,0.01753]
[1763957458434,0.00937,87723.0,87719.0,0.01401]
[1763957458651,0.09696278,87734.0,87720.0,0.01753]
[1763957458862,0.09696278,87734.0,87722.0,0.01753]
[1763957459283,2.0,87735.0,87723.0,0.02779]
[1763957459489,2.0,87735.0,87722.0,0.01753]
[1763957459898,2.0,87735.0,87722.0,0.04532]
[1763957460536,2.0,87735.0,87723.0,0.02779]
[1763957460760,0.01814102,87748.0,87734.0,0.03154]
[1763957460761,2.0,87747.0,87734.0,0.03154]
[1763957460978,0.001,87735.0,87734.0,0.01401]
[1763957461441,2.0,87759.0,87747.0,0.01753]
[1763957461658,0.0166507,87755.0,87749.0,0.01753]
[1763957461876,0.0004,87760.0,87754.0,0.01753]
[1763957462086,0.0003926,87755.0,87750.0,0.005933]
[1763957462531,0.0003926,87755.0,87747.0,0.01401]
[1763957464976,0.0003926,87755.0,87743.0,0.01265]
[1763957465386,0.5862234,87753.0,87743.0,0.01265]
[1763957465843,0.0003926,87755.0,87743.0,0.01265]
[1763957466059,0.0003926,87755.0,87754.0,0.01671]
[1763957466269,0.01788626,87758.0,87754.0,0.04279]
[1763957466482,0.0004,87760.0,87757.0,0.01671]
[1763957466703,0.0004,87760.0,87759.0,0.01671]
[1763957466929,0.0004,87760.0,87759.0,0.04279]
[1763957467718,0.4091084,87770.0,87759.0,0.04279]
[1763957467921,0.40922611,87770.0,87759.0,0.04279]
[1763957468270,0.00037318,87760.0,87759.0,0.04279]
[1763957468388,0.00037318,87760.0,87748.0,0.02608]
[1763957468600,0.00894,87769.0,87748.0,0.02608]
[1763957468805,0.23681341,87769.0,87748.0,0.02608]
[1763957469007,0.00894,87769.0,87748.0,0.02608]
[1763957469492,0.5862234,87760.0,87743.0,0.01265]
[1763957469645,0.5862234,87760.0,87759.0,0.001]
[1763957469825,0.22787852,87767.0,87759.0,0.001]
[1763957470032,0.0113938,87767.0,87759.0,0.003]
[1763957470347,0.01139562,87753.0,87732.0,0.04009]
[1763957470545,0.5862234,87750.0,87735.0,0.00719859]
[1763957470746,0.01139653,87746.0,87743.0,0.001]
[1763957470949,0.2393286,87746.0,87743.0,0.001]
[1763957471153,0.5862234,87750.0,87733.0,0.02608]
[1763957471330,0.5862234,87750.0,87734.0,0.02614571]
[1763957471717,0.01139276,87775.0,87749.0,0.01671]
[1763957471929,0.02126442,87768.0,87755.0,0.01265]
[1763957472130,0.5,87779.0,87767.0,0.02936]
[1763957472449,0.5,87779.0,87767.0,0.01265]
[1763957472616,0.0004,87780.0,87767.0,0.01265]
[1763957472822,0.5866234,87780.0,87767.0,0.01265]
[1763957473345,0.5866234,87780.0,87755.0,0.01265]
[1763957473346,0.01139263,87776.0,87755.0,0.01265]
[1763957473529,0.00894,87756.0,87750.0,0.01265]
[1763957473686,0.00894,87756.0,87750.0,0.02621928]
[1763957473887,0.0091888,87756.0,87750.0,0.02621928]
[1763957474312,0.02058403,87756.0,87743.0,0.01265]
[1763957474717,0.00894,87744.0,87734.0,0.00585597]
[1763957474935,0.5862234,87753.0,87735.0,0.02279591]
[1763957475280,0.59761902,87753.0,87736.0,0.01265]
[1763957475480,0.01139588,87751.0,87736.0,0.01265]
[1763957475677,0.5862234,87753.0,87736.0,0.01265]
[1763957475880,0.5862234,87753.0,87737.0,0.04887539]
[1763957476085,0.5862234,87753.0,87738.0,0.03363354]
[1763957476317,0.5862234,87753.0,87736.0,0.01265]
[1763957476318,0.23931783,87750.0,87736.0,0.01265]
[1763957476528,0.5,87759.0,87737.0,0.04887539]
[1763957476733,0.0002488,87756.0,87737.0,0.04744037]
[1763957476988,0.0002488,87756.0,87738.0,0.02608]
[1763957477286,0.0002488,87756.0,87740.0,0.09696278]
[1763957477506,0.0002488,87756.0,87755.0,0.01265]
[1763957477636,0.0002488,87756.0,87755.0,0.02936]
[1763957477830,0.0002488,87756.0,87755.0,0.05544]
[1763957478031,0.0181338,87756.0,87741.0,0.03864313]
[1763957478276,0.0181338,87756.0,87720.0,0.06628352]
[1763957478277,0.09696278,87755.0,87739.0,0.01265]
[1763957478450,0.5862234,87751.0,87739.0,0.01265]
[1763957478652,0.0181338,87756.0,87740.0,0.13882465]
[1763957479067,0.0181338,87756.0,87741.0,0.02608]
[1763957479332,0.5862234,87751.0,87739.0,0.01265]
[1763957479501,0.0181338,87756.0,87755.0,0.02936]
[1763957480901,0.0181338,87756.0,87755.0,0.03036]
[1763957481299,0.0181338,87756.0,87755.0,0.05644]
[1763957481723,0.0181338,87756.0,87755.0,0.01365]
[1763957481929,0.0181338,87756.0,87755.0,0.001]
[1763957483105,0.0181338,87756.0,87739.0,0.01265]
[1763957483341,0.0181338,87756.0,87740.0,0.09696278]
[1763957483544,0.0181338,87756.0,87741.0,0.01356928]
[1763957485395,0.0181338,87756.0,87741.0,0.03964928]
[1763957486517,0.0181338,87756.0,87741.0,0.02608]
[1763957487139,0.00894,87755.0,87741.0,0.02608]
[1763957487407,0.23684983,87755.0,87741.0,0.02608]
[1763957487548,0.5862234,87751.0,87739.0,0.01265]
[1763957488155,0.02033536,87755.0,87739.0,0.01265]
[1763957488156,0.00894,87755.0,87750.0,0.01671]
[1763957488356,0.02134277,87754.0,87750.0,0.01671]
[1763957488557,0.02134277,87753.0,87739.0,0.03873]
[1763957488758,0.00894,87755.0,87740.0,0.02608]
[1763957488961,0.00894,87755.0,87739.0,0.01265]
[1763957488962,0.59761941,87750.0,87739.0,0.01265]
[1763957489289,0.22793348,87745.0,87734.0,0.01265]
[1763957489496,0.02866808,87734.0,87718.0,0.0181338]
[1763957489697,0.01727,87729.0,87710.0,0.03873]
[1763957489901,0.5862234,87730.0,87711.0,0.02280215]
[1763957490116,0.5862234,87730.0,87716.0,0.00756885]
[1763957490256,0.5862234,87730.0,87717.0,0.02280059]
[1763957490460,0.5862234,87730.0,87716.0,0.00756885]
[1763957490664,0.5862234,87730.0,87716.0,0.00796145]
[1763957491061,0.01139873,87729.0,87716.0,0.00796145]
[1763957491264,0.81419632,87730.0,87716.0,0.00796145]
[1763957491265,0.82559492,87730.0,87716.0,0.00796145]
[1763957491466,0.597622,87730.0,87716.0,0.00796145]
[1763957491716,0.82559525,87730.0,87716.0,0.00796145]
[1763957491918,0.597622,87730.0,87716.0,0.00796145]
[1763957492152,0.5862234,87730.0,87716.0,0.00796145]
[1763957492544,0.5862234,87730.0,87717.0,0.04059606]
[1763957492844,2.0,87738.0,87718.0,0.02280033]
[1763957493007,2.0,87738.0,87718.0,0.04888033]
[1763957493452,2.0,87738.0,87719.0,0.02608]
[1763957493892,2.0,87738.0,87719.0,0.04559793]
[1763957494096,2.0,87738.0,87720.0,0.00695818]
[1763957494316,2.0,87738.0,87720.0,0.03334818]
[1763957495086,2.0,87749.0,87737.0,0.01352]
[1763957495259,2.0,87748.0,87737.0,0.01352]
[1763957495671,2.0,87749.0,87737.0,0.01352]
[1763957496486,0.02931757,87738.0,87721.0,0.01352]
[1763957496661,0.5862234,87731.0,87722.0,0.0070852]
[1763957496870,0.5862234,87731.0,87716.0,0.0003926]
[1763957497900,0.5862234,87731.0,87722.0,0.001]
[1763957498044,0.5862234,87731.0,87716.0,0.0003926]
[1763957498446,0.5862234,87731.0,87716.0,0.0013926]
[1763957498646,0.59762187,87731.0,87716.0,0.0003926]
[1763957498867,0.01139886,87728.0,87716.0,0.0003926]
[1763957499076,0.23937624,87728.0,87722.0,0.001]
[1763957499278,0.01126,87717.0,87716.0,0.0003926]
[1763957499489,0.01126,87717.0,87716.0,0.0013926]
[1763957499705,0.02918,87717.0,87716.0,0.0013926]
[1763957499923,0.27738597,87717.0,87716.0,0.0013926]
[1763957500145,0.04938,87717.0,87716.0,0.0013926]
[1763957500607,0.02918,87717.0,87716.0,0.0013926]
[1763957500789,0.01126,87725.0,87716.0,0.0013926]
[1763957500998,0.09696278,87723.0,87716.0,0.0013926]
[1763957501201,0.01126,87725.0,87716.0,0.0013926]
[1763957501438,0.02129942,87724.0,87716.0,0.0003926]
[1763957501598,0.01126,87725.0,87716.0,0.0267826]
[1763957501815,0.32491367,87739.0,87716.0,0.0267826]
[1763957501816,0.5862234,87730.0,87722.0,0.001]
[1763957502015,2.0,87727.0,87724.0,0.01352]
[1763957502217,0.34430192,87726.0,87724.0,0.01352]
[1763957502417,0.323,87726.0,87724.0,0.01352]
[1763957502675,0.323,87726.0,87725.0,0.04567]
[1763957502869,0.09696278,87739.0,87725.0,0.04567]
[1763957503086,2.0,87737.0,87725.0,0.051589]
[1763957503259,0.34430402,87736.0,87725.0,0.025199]
[1763957503440,0.03270197,87735.0,87725.0,0.025199]
[1763957503645,0.58366416,87734.0,87725.0,0.025199]
[1763957503844,0.02130402,87733.0,87725.0,0.025199]
[1763957504046,0.323,87734.0,87733.0,0.01352]
[1763957504245,0.34431013,87734.0,87725.0,0.005919]
[1763957504445,0.323,87734.0,87724.0,0.01452]
[1763957504655,0.323,87736.0,87724.0,0.01352]
[1763957504849,0.02131097,87735.0,87724.0,0.01352]
[1763957505039,0.02131097,87734.0,87725.0,0.02627]
[1763957505236,0.323,87736.0,87735.0,0.03297]
[1763957505446,0.3443083,87736.0,87735.0,0.03297]
[1763957505647,0.0213083,87736.0,87729.0,0.01363]
[1763957505859,0.01139445,87762.0,87735.0,0.01934]
[1763957506064,2.0,87752.0,87746.0,0.01363]
[1763957506304,2.0,87750.0,87746.0,0.01363]
[1763957506505,2.00903,87747.0,87739.0,0.01363]
[1763957506773,0.02130622,87746.0,87729.0,0.01363]
[1763957506973,0.02130622,87745.0,87734.0,0.01363]
[1763957507230,2.0,87748.0,87734.0,0.0140226]
[1763957507422,0.02130823,87747.0,87734.0,0.0140226]
[1763957507633,0.01139614,87749.0,87734.0,0.0140226]
[1763957507634,0.02130823,87746.0,87734.0,0.0140226]
[1763957507933,0.02130823,87745.0,87734.0,0.0140226]
[1763957508139,2.0,87748.0,87734.0,0.0140226]
[1763957508319,0.02130881,87747.0,87734.0,0.0402926]
[1763957508516,0.5862234,87744.0,87734.0,0.0003926]
[1763957509118,0.5862234,87744.0,87743.0,0.01934]
[1763957509319,0.001,87748.0,87743.0,0.01934]
[1763957509665,2.02131499,87747.0,87737.0,0.02627]
[1763957509814,0.02131499,87746.0,87737.0,0.02627]
[1763957510019,0.001,87748.0,87734.0,0.0003926]
[1763957510020,2.0,87747.0,87734.0,0.0003926]
[1763957510305,0.02131436,87746.0,87735.0,0.02627]
[1763957510484,0.22793635,87744.0,87734.0,0.0003926]
[1763957510688,0.01139705,87742.0,87734.0,0.0003926]
[1763957510863,0.85984029,87744.0,87734.0,0.0003926]
[1763957511063,0.02131726,87743.0,87734.0,0.0003926]
[1763957511265,0.02132371,87742.0,87734.0,0.0003926]
[1763957511470,0.85984029,87744.0,87734.0,0.0003926]
[1763957511717,0.02132372,87743.0,87735.0,0.12323278]
[1763957511883,0.001,87747.0,87746.0,0.01934]
[1763957512082,0.0002488,87756.0,87746.0,0.01934]
[1763957512303,0.02132718,87755.0,87746.0,0.04561]
[1763957512506,0.0002488,87756.0,87755.0,0.01934]
[1763957513055,0.0002488,87756.0,87755.0,0.04561]
[1763957514034,0.0002488,87756.0,87755.0,0.01934]
[1763957514245,0.0002488,87756.0,87755.0,0.04561]
[1763957514526,0.0002488,87756.0,87755.0,0.04661]
[1763957514966,0.0002488,87756.0,87755.0,0.02034]
[1763957515959,0.0002488,87756.0,87755.0,0.02134]
[1763957516369,0.0002488,87756.0,87755.0,0.04761]
[1763957518242,0.0002488,87756.0,87755.0,0.053734]
[1763957519306,0.0002488,87756.0,87755.0,0.02134]
[1763957520444,0.0002488,87756.0,87755.0,0.002]
[1763957520854,2.0078588,87756.0,87755.0,0.002]
[1763957521051,2.0002488,87756.0,87755.0,0.002]
[1763957521248,2.24337344,87756.0,87755.0,0.002]
[1763957521744,2.0,87754.0,87741.0,0.01363]
[1763957521940,0.85984029,87751.0,87741.0,0.01363]
[1763957522210,0.85984029,87751.0,87734.0,0.0003926]
[1763957522211,0.01139627,87748.0,87734.0,0.0003926]
[1763957522323,0.00761,87735.0,87734.0,0.0003926]
[1763957522698,0.00761,87742.0,87734.0,0.0003926]
[1763957522919,2.0,87748.0,87741.0,0.03297]
[1763957523118,2.0,87748.0,87741.0,0.01363]
[1763957523504,2.0,87748.0,87741.0,0.01463]
[1763957523677,0.0113964,87747.0,87741.0,0.001]
[1763957523880,0.00761,87742.0,87734.0,0.0003926]
[1763957524082,0.00761,87735.0,87734.0,0.0003926]
[1763957524566,0.33061,87735.0,87734.0,0.0003926]
[1763957524768,0.01900679,87744.0,87734.0,0.0003926]
[1763957524769,0.01900432,87763.0,87734.0,0.0457526]
[1763957525008,0.00761,87763.0,87746.0,0.01379]
[1763957525392,0.323,87762.0,87746.0,0.01379]
[1763957525597,0.323,87759.0,87746.0,0.01379]
[1763957526003,0.85984029,87760.0,87746.0,0.01379]
[1763957526367,0.323,87759.0,87746.0,0.01379]
[1763957526937,0.01651835,87772.0,87755.0,0.01738]
[1763957527149,0.01651835,87772.0,87755.0,0.02881428]
[1763957527325,0.01651835,87772.0,87755.0,0.05679428]
[1763957528215,0.01139328,87771.0,87746.0,0.01379]
[1763957528410,0.01139341,87770.0,87746.0,0.04177]
[1763957528632,0.59696278,87769.0,87755.0,0.01738]
[1763957529067,0.85984029,87770.0,87755.0,0.04536]
[1763957529607,0.85984029,87770.0,87755.0,0.002]
[1763957529608,0.85984029,87765.0,87755.0,0.002]
[1763957530016,0.85984029,87765.0,87746.0,0.01379]
[1763957530222,0.85984029,87765.0,87755.0,0.002]
[1763957530428,0.85984029,87765.0,87755.0,0.003]
[1763957530575,0.85984029,87765.0,87755.0,0.02038]
[1763957530758,0.323,87764.0,87755.0,0.04836]
[1763957530957,0.323,87764.0,87755.0,0.04636]
[1763957531185,0.323,87764.0,87755.0,0.001]
[1763957531387,0.323,87764.0,87755.0,0.002]
[1763957532331,0.323,87764.0,87755.0,0.01838]
[1763957533121,0.323,87764.0,87755.0,0.04636]
[1763957533389,0.323,87764.0,87755.0,0.01838]
[1763957533563,0.323,87764.0,87755.0,0.001]
[1763957533719,0.0078588,87756.0,87755.0,0.001]
[1763957534554,0.0002488,87756.0,87755.0,0.04636]
[1763957535542,0.0002488,87756.0,87755.0,0.04536]
[1763957536587,0.0002488,87756.0,87755.0,0.04636]
[1763957537131,0.0002488,87756.0,87755.0,0.001]
[1763957537247,0.09696278,87768.0,87755.0,0.001]
[1763957537446,0.02134707,87767.0,87755.0,0.001]
[1763957537648,0.02134707,87766.0,87755.0,0.001]
[1763957537896,0.09696278,87768.0,87755.0,0.001]
[1763957538100,0.02895688,87767.0,87755.0,0.001]
[1763957538320,0.01139406,87765.0,87755.0,0.001]
[1763957538715,0.2392759,87765.0,87741.0,0.01379]
[1763957538906,0.85984029,87751.0,87733.0,0.01379]
[1763957539248,0.22792036,87750.0,87733.0,0.01379]
[1763957539454,0.00761,87735.0,87721.0,0.02798]
[1763957539684,0.00761,87735.0,87720.0,0.01363]
[1763957540060,0.01522,87735.0,87720.0,0.01363]
[1763957540571,0.00761,87735.0,87720.0,0.04161]
[1763957541146,0.00761,87742.0,87734.0,0.0177726]
[1763957541353,0.02133569,87741.0,87734.0,0.0177726]
[1763957541555,0.00761,87742.0,87734.0,0.0177726]
[1763957541752,0.02133768,87741.0,87734.0,0.0003926]
[1763957541930,0.00761,87742.0,87734.0,0.0003926]
[1763957542145,0.00761,87735.0,87734.0,0.0003926]
[1763957542512,0.00761,87735.0,87734.0,0.0013926]
[1763957542734,0.01522,87735.0,87734.0,0.0013926]
[1763957543046,0.00761,87735.0,87734.0,0.0013926]
[1763957543443,0.01522,87735.0,87734.0,0.0003926]
[1763957543685,2.01522,87735.0,87734.0,0.0003926]
[1763957544858,2.00761,87735.0,87734.0,0.0003926]
[1763957545079,2.0,87735.0,87734.0,0.0177726]
[1763957545284,0.03070777,87765.0,87734.0,0.0177726]
[1763957545285,2.0,87757.0,87734.0,0.0457526]
[1763957545533,0.00761,87764.0,87755.0,0.01379]
[1763957545740,2.0,87763.0,87755.0,0.01379]
[1763957545953,0.00761,87764.0,87755.0,0.01379]
[1763957546159,2.0,87769.0,87756.0,0.02798]
[1763957546574,0.00761,87770.0,87768.0,0.01379]
[1763957546781,0.00761,87770.0,87756.0,0.02798]
[1763957547822,0.00772771,87770.0,87756.0,0.02798]
[1763957549921,0.00772771,87770.0,87756.0,0.02898]
[1763957550746,0.00772771,87770.0,87756.0,0.001]
[1763957551063,0.00619,87757.0,87756.0,0.001]
[1763957551696,0.00619,87757.0,87743.0,0.01379]
[1763957552161,0.01139523,87756.0,87743.0,0.01379]
[1763957552837,0.00619,87744.0,87731.0,0.01379]
[1763957553323,2.0,87749.0,87743.0,0.01479]
[1763957553515,2.0,87749.0,87733.0,0.02279643]
[1763957553718,2.0,87749.0,87733.0,0.02651]
[1763957553891,2.0,87751.0,87733.0,0.02651]
[1763957554393,2.0,87751.0,87734.0,0.01234728]
[1763957554813,0.00619,87735.0,87724.0,0.01379]
[1763957555209,0.05895883,87738.0,87724.0,0.01379]
[1763957555410,2.0,87740.0,87724.0,0.01379]
[1763957555609,2.01139718,87741.0,87724.0,0.01379]
[1763957555872,0.01139744,87739.0,87724.0,0.01379]
[1763957556033,0.01139744,87739.0,87725.0,0.0151826]
[1763957556231,0.01139744,87739.0,87725.0,0.0141826]
[1763957556820,0.01139744,87739.0,87725.0,0.0151826]
[1763957557029,0.22792407,87749.0,87725.0,0.0151826]
[1763957557227,2.0,87747.0,87726.0,0.02651]
[1763957557435,2.0,87745.0,87726.0,0.02651]
[1763957557639,2.0,87751.0,87727.0,0.09696278]
[1763957557867,2.0,87749.0,87744.0,0.01281]
[1763957558103,2.0,87751.0,87744.0,0.01281]
[1763957559116,2.23931415,87751.0,87744.0,0.01281]
[1763957559307,0.23933514,87744.0,87728.0,0.01524454]
[1763957559510,0.0113964,87747.0,87727.0,0.02651]
[1763957559724,0.12767055,87781.0,87729.0,0.02279747]
[1763957559725,0.01139536,87755.0,87729.0,0.02279747]
[1763957559935,2.09696278,87753.0,87730.0,0.02651]
[1763957560136,0.23929696,87758.0,87731.0,0.02105024]
[1763957560137,2.0,87751.0,87731.0,0.02105024]
[1763957560385,2.0,87750.0,87732.0,0.01587056]
[1763957560873,2.0,87751.0,87732.0,0.01587056]
[1763957561072,2.0,87749.0,87732.0,0.06274179]
[1763957561276,2.0,87749.0,87732.0,0.04238056]
[1763957561443,2.0,87749.0,87733.0,0.02651]
[1763957561651,2.0,87749.0,87734.0,0.00627438]
[1763957562023,2.0,87749.0,87734.0,0.03278438]
[1763957562361,2.0,87753.0,87734.0,0.03278438]
[1763957562525,2.0,87751.0,87734.0,0.03278438]
[1763957562985,2.0,87751.0,87734.0,0.03378438]
[1763957563496,2.0,87751.0,87735.0,0.02651]
[1763957564073,2.01139575,87752.0,87735.0,0.02651]
[1763957564282,2.0,87751.0,87735.0,0.02651]
[1763957564498,2.0,87752.0,87735.0,0.02651]
[1763957564664,2.0,87758.0,87735.0,0.02651]
[1763957564868,0.01139562,87753.0,87735.0,0.02651]
[1763957565066,2.0,87754.0,87735.0,0.02651]
[1763957565267,2.0,87756.0,87735.0,0.02651]
[1763957565635,2.0,87754.0,87735.0,0.02651]
[1763957565808,2.0,87762.0,87735.0,0.02651]
[1763957566021,2.0,87760.0,87736.0,0.00714511]
[1763957566221,2.0,87758.0,87736.0,0.00714511]
[1763957566563,2.0,87756.0,87737.0,0.02732]
[1763957566840,2.0,87754.0,87737.0,0.02732]
[1763957567039,0.01139484,87759.0,87738.0,0.01347]
[1763957567040,0.23929956,87758.0,87738.0,0.01347]
[1763957567241,2.01139523,87756.0,87739.0,0.00638057]
[1763957567475,0.01139575,87752.0,87739.0,0.03370057]
[1763957567657,0.01139562,87753.0,87739.0,0.03370057]
[1763957567871,2.0,87759.0,87739.0,0.03370057]
[1763957568037,2.0,87757.0,87739.0,0.03370057]
[1763957568205,2.0,87755.0,87739.0,0.03370057]
[1763957568406,0.02131739,87754.0,87739.0,0.03470057]
[1763957568694,2.0,87759.0,87739.0,0.03470057]
[1763957568807,2.0,87757.0,87740.0,0.02732]
[1763957569012,2.0,87755.0,87740.0,0.02732]
[1763957569219,2.0,87762.0,87740.0,0.02732]
[1763957569459,2.0,87760.0,87754.0,0.01347]
[1763957569657,2.0,87758.0,87754.0,0.01347]
[1763957569862,2.01139445,87762.0,87754.0,0.01347]
[1763957570038,2.0,87760.0,87754.0,0.01347]
[1763957570240,2.0,87758.0,87754.0,0.01347]
[1763957570439,2.01139445,87762.0,87754.0,0.01347]
[1763957570636,2.0,87760.0,87754.0,0.01347]
[1763957570900,2.0,87758.0,87754.0,0.01347]
[1763957571106,2.0,87762.0,87754.0,0.01347]
[1763957571441,2.0,87760.0,87754.0,0.01347]
[1763957571612,2.0,87762.0,87754.0,0.01347]
[1763957572195,0.11022324,87763.0,87754.0,0.01347]
[1763957572196,2.0,87760.0,87754.0,0.01347]
[1763957572401,0.01139471,87760.0,87746.0,0.01347]
[1763957572674,0.11022324,87763.0,87746.0,0.01347]
[1763957572675,2.0,87762.0,87746.0,0.01347]
[1763957572822,2.0,87760.0,87746.0,0.04079]
[1763957573186,2.0,87762.0,87746.0,0.04079]
[1763957573394,2.0,87760.0,87747.0,0.02732]
[1763957573688,2.0,87762.0,87747.0,0.02732]
[1763957573842,2.0,87760.0,87747.0,0.02732]
[1763957574253,2.0,87762.0,87747.0,0.02732]
[1763957574445,2.0,87760.0,87747.0,0.02732]
[1763957574850,2.0,87762.0,87747.0,0.02732]
[1763957576244,2.0,87760.0,87747.0,0.02732]
[1763957576464,2.0,87762.0,87747.0,0.02732]
[1763957576668,2.0,87760.0,87747.0,0.02732]
[1763957576865,2.0,87762.0,87747.0,0.02732]
[1763957577070,2.0,87760.0,87747.0,0.02732]
[1763957577276,2.0,87762.0,87747.0,0.02732]
[1763957577521,2.0,87760.0,87747.0,0.02732]
[1763957577871,2.0,87762.0,87759.0,0.01347]
[1763957578067,2.0,87760.0,87759.0,0.01347]
[1763957578316,2.02135178,87760.0,87759.0,0.01347]
[1763957578475,2.02135178,87760.0,87759.0,0.0305]
[1763957578693,2.02135178,87760.0,87759.0,0.005782]
[1763957578895,2.0,87759.0,87747.0,0.02732]
[1763957579096,2.0,87762.0,87747.0,0.02732]
[1763957579328,0.01139484,87759.0,87747.0,0.02732]
[1763957579519,0.01139523,87756.0,87747.0,0.02732]
[1763957579840,0.02135801,87755.0,87747.0,0.02732]
[1763957580042,0.01139523,87756.0,87747.0,0.02732]
[1763957580316,0.02135811,87755.0,87747.0,0.02732]
[1763957580524,0.02135811,87754.0,87747.0,0.02732]
[1763957580734,0.03070777,87778.0,87756.0,0.01703]
[1763957580949,0.0213681,87763.0,87761.0,0.01347]
[1763957581122,0.0213681,87762.0,87746.0,0.01347]
[1763957581326,0.5,87769.0,87747.0,0.02732]
[1763957581506,0.58595304,87760.0,87748.0,0.01605471]
[1763957581692,0.58595304,87760.0,87746.0,0.01347]
[1763957581897,0.58595304,87760.0,87747.0,0.02732]
[1763957582538,0.59734775,87760.0,87747.0,0.02732]
[1763957582715,0.58595304,87760.0,87747.0,0.02732]
[1763957582934,0.59734775,87760.0,87747.0,0.02732]
[1763957583359,0.58595304,87760.0,87747.0,0.0501128]
[1763957583638,0.01139497,87758.0,87748.0,0.00635828]
[1763957583844,0.22790549,87756.0,87748.0,0.00635828]
[1763957584046,0.01139679,87744.0,87728.0,0.02484]
[1763957584246,0.58595304,87748.0,87728.0,0.02484]
[1763957584488,0.01139653,87746.0,87728.0,0.02484]
[1763957584861,0.01139705,87742.0,87728.0,0.02484]
[1763957585184,0.01139692,87743.0,87728.0,0.02484]
[1763957585359,0.23933672,87743.0,87728.0,0.02484]
[1763957585586,0.22794397,87741.0,87733.0,0.0129]
[1763957585968,0.22792081,87750.0,87733.0,0.0129]
[1763957585969,0.23932485,87747.0,87733.0,0.0132926]
[1763957586142,0.01139679,87744.0,87733.0,0.0132926]
[1763957586511,0.3637419,87748.0,87733.0,0.0132926]
[1763957586725,0.58595304,87743.0,87733.0,0.0132926]
[1763957587128,0.59734905,87750.0,87733.0,0.0132926]
[1763957587324,0.0113964,87747.0,87733.0,0.0142926]
[1763957587527,0.02136339,87746.0,87733.0,0.0142926]
[1763957587733,0.24929668,87745.0,87733.0,0.0132926]
[1763957587934,0.01139679,87744.0,87733.0,0.0132926]